bitfinex-derivatives/quotes_BTCF0:USTF0_20250514
["timestamp","ask_amount","ask_price","bid_price","bid_amount"]
[1747225414599,0.6498473,104190.0,104180.0,2.1624796]
[1747225414799,0.6498473,104190.0,104180.0,2.1224796]
[1747225415308,0.6498473,104190.0,104180.0,2.1624796]
[1747225415509,0.6498473,104190.0,104180.0,2.1224796]
[1747225420119,0.6498473,104190.0,104180.0,2.0004796]
[1747225420324,0.6498473,104190.0,104180.0,1.9604796]
[1747225421225,0.6498473,104190.0,104180.0,2.1224796]
[1747225421615,0.6498473,104190.0,104180.0,2.1624796]
[1747225422118,0.6498473,104190.0,104180.0,2.1224796]
[1747225423219,0.6498473,104190.0,104180.0,1.9604796]
[1747225424329,0.6498473,104190.0,104180.0,2.1224796]
[1747225425123,0.6498473,104190.0,104180.0,2.1624796]
[1747225426921,0.4579,104190.0,104180.0,2.1624796]
[1747225427131,0.0336,104190.0,104180.0,2.6007103]
[1747225427322,0.2255473,104190.0,104180.0,2.60633101]
[1747225428027,0.1939473,104190.0,104180.0,1.10633101]
[1747225428528,0.2239473,104190.0,104180.0,2.60633101]
[1747225429212,0.2239473,104190.0,104180.0,2.6007103]
[1747225429418,0.2239473,104190.0,104180.0,2.74682554]
[1747225429827,0.032,104190.0,104180.0,2.74682554]
[1747225430024,0.2239473,104190.0,104180.0,2.74682554]
[1747225430224,0.032,104190.0,104180.0,2.74682554]
[1747225431231,0.032,104190.0,104180.0,2.76032554]
[1747225431419,0.2239473,104190.0,104180.0,2.20466414]
[1747225431625,0.6466473,104190.0,104180.0,2.10956414]
[1747225432029,0.2858473,104190.0,104180.0,2.22699484]
[1747225432327,0.2858473,104190.0,104180.0,2.09709484]
[1747225432526,0.2858473,104190.0,104180.0,2.13452554]
[1747225432723,0.2858473,104190.0,104180.0,2.08709484]
[1747225432916,0.2858473,104190.0,104180.0,2.11969484]
[1747225433115,0.2858473,104190.0,104180.0,2.75992554]
[1747225435634,0.2858473,104190.0,104180.0,2.6138103]
[1747225437231,0.2858473,104190.0,104180.0,2.6003103]
[1747225437731,0.2858473,104190.0,104180.0,2.38562554]
[1747225438326,0.2858473,104190.0,104180.0,2.30819484]
[1747225438831,0.2858473,104190.0,104180.0,2.38562554]
[1747225439331,0.2239473,104190.0,104180.0,2.38562554]
[1747225439532,0.2239473,104190.0,104180.0,2.74642554]
[1747225440736,0.2544473,104190.0,104180.0,2.74642554]
[1747225441822,0.2544473,104190.0,104180.0,2.59156414]
[1747225442027,0.2871473,104190.0,104180.0,2.74642554]
[1747225443236,0.2871473,104190.0,104180.0,2.75992554]
[1747225446438,0.2871473,104190.0,104180.0,2.68249484]
[1747225446937,0.2871473,104190.0,104180.0,2.75992554]
[1747225447138,0.2871473,104190.0,104180.0,2.21166414]
[1747225447338,0.2871473,104190.0,104180.0,2.32587484]
[1747225447539,0.725378,104190.0,104180.0,1.99437834]
[1747225447735,0.725378,104190.0,104180.0,2.18634414]
[1747225448139,0.725378,104190.0,104180.0,2.02434414]
[1747225448347,0.6479473,104190.0,104180.0,2.02434414]
[1747225449343,0.6479473,104190.0,104180.0,2.01084414]
[1747225449542,0.6479473,104190.0,104180.0,1.81887834]
[1747225449737,0.6479473,104190.0,104180.0,2.01084414]
[1747225450945,0.6479473,104190.0,104180.0,1.8647289]
[1747225453842,0.6479473,104190.0,104180.0,0.3647289]
[1747225454040,0.6479473,104190.0,104180.0,0.1727631]
[1747225454241,0.6479473,104190.0,104180.0,0.3647289]
[1747225454440,0.6479473,104190.0,104180.0,1.8647289]
[1747225455946,0.725378,104190.0,104180.0,1.8647289]
[1747225459555,0.725378,104190.0,104180.0,1.6727631]
[1747225459847,0.831362,104190.0,104180.0,1.6727631]
[1747225460048,1.1587927,104190.0,104180.0,0.1727631]
[1747225460359,1.1587927,104190.0,104180.0,0.07678]
[1747225460654,1.1587927,104190.0,104180.0,0.02688]
[1747225463756,1.5187927,104190.0,104180.0,1e-07]
[1747225464151,0.1919658,104180.0,104170.0,0.0038]
[1747225464455,0.7726272,104180.0,104170.0,0.0038]
[1747225464664,0.1920026,104160.0,104150.0,1.82349015]
[1747225464953,0.6302333,104160.0,104150.0,1.82349015]
[1747225465255,0.6302333,104160.0,104150.0,1.91948247]
[1747225465256,0.7258333,104160.0,104150.0,1.91948247]
[1747225465949,0.7258333,104160.0,104150.0,1.82347227]
[1747225466154,0.7258333,104160.0,104150.0,1.82647227]
[1747225467049,0.7258333,104160.0,104150.0,1.85947227]
[1747225467248,0.6484026,104160.0,104150.0,1.85947227]
[1747225467748,0.6484026,104160.0,104150.0,1.85647227]
[1747225467948,0.6484026,104160.0,104150.0,1.85885234]
[1747225471056,0.6484026,104160.0,104150.0,1.89125234]
[1747225471657,0.6484026,104160.0,104150.0,1.96868304]
[1747225471863,0.5528026,104160.0,104150.0,2.00868304]
[1747225472170,0.2879947,104170.0,104160.0,0.1920026]
[1747225472363,0.2879947,104170.0,104160.0,0.6633333]
[1747225472657,0.2879947,104170.0,104160.0,2.2239333]
[1747225472856,0.2879947,104170.0,104160.0,2.31993483]
[1747225473057,0.2879947,104170.0,104160.0,2.48193483]
[1747225473261,0.2879947,104170.0,104160.0,2.55936553]
[1747225473460,0.2879947,104170.0,104160.0,2.48193483]
[1747225473661,0.2879947,104170.0,104160.0,2.49667519]
[1747225474570,0.3193947,104170.0,104160.0,2.49667519]
[1747225474766,0.2879947,104170.0,104160.0,2.13587519]
[1747225474963,0.2899947,104170.0,104160.0,2.13587519]
[1747225476569,0.2899947,104170.0,104160.0,2.10587519]
[1747225476769,0.2899947,104170.0,104160.0,2.02844449]
[1747225476963,0.2899947,104170.0,104160.0,2.46667519]
[1747225477670,0.2899947,104170.0,104160.0,2.50667519]
[1747225478168,0.2899947,104170.0,104160.0,2.46667519]
[1747225479067,0.002,104170.0,104160.0,2.50667519]
[1747225479269,0.1939842,104170.0,104160.0,2.58410589]
[1747225479463,0.2399708,104180.0,104170.0,0.1919842]
[1747225479659,0.2399708,104180.0,104170.0,0.7670149]
[1747225479962,0.1919793,104180.0,104170.0,2.2670149]
[1747225480164,0.7131426,104190.0,104180.0,0.1919658]
[1747225480364,0.7131426,104190.0,104180.0,0.2582658]
[1747225480365,0.3523426,104190.0,104180.0,0.2582658]
[1747225480865,0.3523426,104190.0,104180.0,0.3542489]
[1747225481972,0.3563426,104190.0,104180.0,0.3542489]
[1747225482471,0.7478426,104190.0,104180.0,0.3542489]
[1747225482665,0.8252733,104190.0,104180.0,0.3542489]
[1747225482866,0.8272733,104190.0,104180.0,0.3542489]
[1747225483261,0.8272733,104190.0,104180.0,0.1291831]
[1747225483571,0.8272733,104190.0,104180.0,0.0959831]
[1747225483772,0.904704,104190.0,104180.0,0.0959831]
[1747225484372,0.1919658,104180.0,104170.0,1.5312]
[1747225484573,0.7690272,104180.0,104170.0,0.2231842]
[1747225484768,0.7690272,104180.0,104170.0,0.3191673]
[1747225486471,0.7690272,104180.0,104170.0,0.0959831]
[1747225486665,0.7690272,104180.0,104170.0,0.2879673]
[1747225486865,0.6915965,104180.0,104170.0,0.2879673]
[1747225487377,0.73319043,104180.0,104170.0,0.2879673]
[1747225489068,0.73319043,104180.0,104170.0,0.0959831]
[1747225489572,0.73319043,104180.0,104170.0,0.1263831]
[1747225493578,0.73319043,104180.0,104170.0,0.1302231]
[1747225494276,0.73319043,104180.0,104170.0,0.0998231]
[1747225494775,0.76459043,104180.0,104170.0,0.0998231]
[1747225494977,0.76459043,104180.0,104170.0,0.1322231]
[1747225498983,0.76459043,104180.0,104170.0,0.3242073]
[1747225501385,0.6465658,104180.0,104170.0,0.3242073]
[1747225501586,0.6465658,104180.0,104170.0,0.3891073]
[1747225501884,0.6465658,104180.0,104170.0,0.50713193]
[1747225502075,0.6465658,104180.0,104170.0,0.66913193]
[1747225502484,0.6465658,104180.0,104170.0,2.16913193]
[1747225503075,0.6465658,104180.0,104170.0,2.0511073]
[1747225504185,0.6465658,104180.0,104170.0,1.8891073]
[1747225504386,0.76459043,104180.0,104170.0,1.8891073]
[1747225504590,0.76459043,104180.0,104170.0,1.8570073]
[1747225505388,0.40379043,104180.0,104170.0,1.8570073]
[1747225505787,0.2857658,104180.0,104170.0,1.8570073]
[1747225505989,0.2857658,104180.0,104170.0,1.8876073]
[1747225507288,0.36320721,104180.0,104170.0,1.8876073]
[1747225509700,0.72400721,104180.0,104170.0,1.8876073]
[1747225509891,0.72400721,104180.0,104170.0,1.8570073]
[1747225510484,0.80144862,104180.0,104170.0,1.6322231]
[1747225513487,0.80144862,104180.0,104170.0,1.5998231]
[1747225514292,0.72400721,104180.0,104170.0,1.5998231]
[1747225514486,0.72400721,104180.0,104170.0,1.6324231]
[1747225514684,0.72400721,104180.0,104170.0,1.6965231]
[1747225515195,0.72400721,104180.0,104170.0,1.6324231]
[1747225519088,0.72400721,104180.0,104170.0,1.6636231]
[1747225523900,0.80144862,104180.0,104170.0,1.6636231]
[1747225524103,0.80144862,104180.0,104170.0,1.5998231]
[1747225524399,0.87889003,104180.0,104170.0,0.0998231]
[1747225524713,1.03144862,104180.0,104170.0,0.00384]
[1747225525400,0.1919842,104170.0,104160.0,0.16346524]
[1747225525604,0.79876702,104170.0,104160.0,0.16346524]
[1747225525802,0.79876702,104170.0,104160.0,0.10779601]
[1747225527204,0.79876702,104170.0,104160.0,0.09599232]
[1747225527605,0.90476702,104170.0,104160.0,0.0010001]
[1747225527797,1.18476702,104170.0,104160.0,1e-07]
[1747225528001,1.43476702,104170.0,104160.0,1e-07]
[1747225528504,0.1920026,104160.0,104150.0,0.00192022]
[1747225528705,0.91238542,104160.0,104150.0,0.00192022]
[1747225529305,0.99369322,104160.0,104150.0,0.00192022]
[1747225529610,0.99369322,104160.0,104150.0,0.00292022]
[1747225530400,0.99369322,104160.0,104150.0,0.00392022]
[1747225530908,0.87559791,104160.0,104150.0,0.00392022]
[1747225533510,0.6475026,104160.0,104150.0,0.41004738]
[1747225533709,0.6154026,104160.0,104150.0,0.47374738]
[1747225534006,0.6154026,104160.0,104150.0,0.35565207]
[1747225534211,0.6154026,104160.0,104150.0,0.51765207]
[1747225534603,0.6154026,104160.0,104150.0,2.01765207]
[1747225536510,0.6154026,104160.0,104150.0,1.82563097]
[1747225537211,0.73349791,104160.0,104150.0,1.82563097]
[1747225538205,0.73349791,104160.0,104150.0,1.66363097]
[1747225539510,0.85159322,104160.0,104150.0,0.00392022]
[1747225539720,0.7354026,104160.0,104150.0,0.00392022]
[1747225539904,0.85349791,104160.0,104150.0,0.00392022]
[1747225540104,0.7354026,104160.0,104150.0,0.00392022]
[1747225540304,0.85349791,104160.0,104150.0,0.13103097]
[1747225540506,0.85349791,104160.0,104150.0,0.16253097]
[1747225540706,0.73349791,104160.0,104150.0,0.16253097]
[1747225542517,0.73349791,104160.0,104150.0,0.09993097]
[1747225544712,0.73349791,104160.0,104150.0,0.13253097]
[1747225545117,0.6154026,104160.0,104150.0,0.13253097]
[1747225545319,0.73349791,104160.0,104150.0,0.13253097]
[1747225549419,0.85159322,104160.0,104150.0,2e-08]
[1747225550022,1.28760522,104160.0,104150.0,2e-08]
[1747225550416,1.28960522,104160.0,104150.0,2e-08]
[1747225550614,0.94960522,104160.0,104150.0,2e-08]
[1747225550817,1.05960522,104160.0,104150.0,2e-08]
[1747225553030,1.32960522,104160.0,104150.0,2e-08]
[1747225559832,0.95960522,104160.0,104150.0,2e-08]
[1747225560013,0.99070522,104160.0,104150.0,2e-08]
[1747225560923,0.89469322,104160.0,104150.0,2e-08]
[1747225563529,1.25549322,104160.0,104150.0,2e-08]
[1747225567329,1.17429338,104160.0,104150.0,2e-08]
[1747225568234,1.39145338,104160.0,104150.0,2e-08]
[1747225570638,1.31395799,104160.0,104150.0,2e-08]
[1747225570842,1.31395799,104160.0,104150.0,0.06120002]
[1747225571039,1.31395799,104160.0,104150.0,0.09150002]
[1747225571238,1.31340462,104160.0,104150.0,0.09150002]
[1747225571641,1.28280462,104160.0,104150.0,0.18751077]
[1747225572144,1.1647626,104160.0,104150.0,0.18751077]
[1747225572350,0.9476026,104160.0,104150.0,0.34951077]
[1747225573850,0.9156026,104160.0,104150.0,0.54153187]
[1747225574248,0.9156026,104160.0,104150.0,0.34951077]
[1747225574641,0.9156026,104160.0,104150.0,1.84951077]
[1747225575052,1.1318026,104160.0,104150.0,1.84951077]
[1747225576146,0.9156026,104160.0,104150.0,2.04153187]
[1747225576452,1.1315226,104160.0,104150.0,1.84951077]
[1747225576647,1.1314826,104160.0,104150.0,1.84951077]
[1747225578557,1.24952462,104160.0,104150.0,1.84951077]
[1747225578950,1.06374462,104160.0,104150.0,1.84951077]
[1747225579151,1.27958462,104160.0,104150.0,1.84951077]
[1747225582657,1.06374462,104160.0,104150.0,1.84951077]
[1747225582860,1.27958462,104160.0,104150.0,1.84951077]
[1747225583159,1.27958462,104160.0,104150.0,0.31921077]
[1747225583359,1.34168462,104160.0,104150.0,0.22320002]
[1747225583559,1.34168462,104160.0,104150.0,0.31921077]
[1747225584261,1.34168462,104160.0,104150.0,0.15721077]
[1747225586260,1.34168462,104160.0,104150.0,0.12681077]
[1747225587047,0.1920211,104150.0,104140.0,0.0318]
[1747225587261,0.70246312,104150.0,104140.0,0.0318]
[1747225587459,0.73526312,104150.0,104140.0,0.12781075]
[1747225588261,0.73526312,104150.0,104140.0,1.62781075]
[1747225589057,0.73526312,104150.0,104140.0,1.62981075]
[1747225589266,0.73526312,104150.0,104140.0,1.79181075]
[1747225589454,0.73526312,104150.0,104140.0,1.79381075]
[1747225590462,0.73526312,104150.0,104140.0,1.82651075]
[1747225591265,0.6947059,104150.0,104140.0,1.82651075]
[1747225594254,0.6947059,104150.0,104140.0,1.79381075]
[1747225594661,0.6172211,104150.0,104140.0,1.82451075]
[1747225594967,0.6947059,104150.0,104140.0,1.82451075]
[1747225595264,0.7253059,104150.0,104140.0,1.66251075]
[1747225596161,0.7253059,104150.0,104140.0,1.63181075]
[1747225596563,0.7253059,104150.0,104140.0,1.66391075]
[1747225598262,0.7253059,104150.0,104140.0,1.82591075]
[1747225598566,0.9411059,104150.0,104140.0,1.82591075]
[1747225599165,0.9411059,104150.0,104140.0,1.66391075]
[1747225600464,0.8636211,104150.0,104140.0,1.66391075]
[1747225600666,0.9411059,104150.0,104140.0,1.66391075]
[1747225601156,0.9411059,104150.0,104140.0,1.82591075]
[1747225603960,0.7253059,104150.0,104140.0,1.82591075]
[1747225604163,0.9411059,104150.0,104140.0,1.82591075]
[1747225604364,0.9411059,104150.0,104140.0,1.85781075]
[1747225613970,0.9411059,104150.0,104140.0,1.82591075]
[1747225614371,0.9411059,104150.0,104140.0,0.29381075]
[1747225614674,0.9411059,104150.0,104140.0,0.26201075]
[1747225615270,0.9411059,104150.0,104140.0,0.10001075]
[1747225617772,0.9411059,104150.0,104140.0,0.004]
[1747225619778,0.9411059,104150.0,104140.0,0.10001997]
[1747225619978,0.9411059,104150.0,104140.0,0.16441997]
[1747225621279,1.1567859,104150.0,104140.0,0.16441997]
[1747225621779,1.1567859,104150.0,104140.0,0.13151997]
[1747225622979,1.0793011,104150.0,104140.0,0.13151997]
[1747225623275,1.1567859,104150.0,104140.0,0.13151997]
[1747225628274,1.1567859,104150.0,104140.0,0.10001997]
[1747225631675,1.0793011,104150.0,104140.0,0.10001997]
[1747225631874,1.1567859,104150.0,104140.0,0.10001997]
[1747225636183,0.7959859,104150.0,104140.0,0.10001997]
[1747225636384,1.5175859,104150.0,104140.0,0.10001997]
[1747225642273,1.5275859,104150.0,104140.0,0.10001997]
[1747225642680,0.1920395,104140.0,104130.0,0.0301]
[1747225642881,0.8744091,104140.0,104130.0,0.0301]
[1747225643185,0.1920579,104130.0,104120.0,1.57614472]
[1747225643384,0.7269427,104130.0,104120.0,1.60874472]
[1747225643585,0.3661427,104130.0,104120.0,1.70477391]
[1747225644083,0.3661427,104130.0,104120.0,1.86677391]
[1747225644282,0.2886579,104130.0,104120.0,1.86677391]
[1747225644579,0.2886579,104130.0,104120.0,1.87177391]
[1747225644784,0.2886579,104130.0,104120.0,1.87677391]
[1747225645384,0.6494579,104130.0,104120.0,1.87677391]
[1747225646782,0.2886579,104130.0,104120.0,2.31505871]
[1747225646987,0.2886579,104130.0,104120.0,1.95425871]
[1747225648497,0.2886579,104130.0,104120.0,1.87677391]
[1747225650189,0.2886579,104130.0,104120.0,2.02370443]
[1747225653992,0.2886579,104130.0,104120.0,1.87677391]
[1747225655291,0.3661427,104130.0,104120.0,1.84517391]
[1747225655692,0.7269427,104130.0,104120.0,1.84517391]
[1747225655890,1.0200675,104130.0,104120.0,0.23365599]
[1747225656188,1.2300675,104130.0,104120.0,0.01]
[1747225656389,0.1920764,104120.0,104110.0,0.16186782]
[1747225656596,0.9430612,104120.0,104110.0,0.16186782]
[1747225656790,1.020546,104120.0,104110.0,0.25790623]
[1747225656996,1.020546,104120.0,104110.0,0.24633061]
[1747225657390,0.9430612,104120.0,104110.0,0.24633061]
[1747225657989,1.020546,104120.0,104110.0,0.24633061]
[1747225658495,1.050546,104120.0,104110.0,0.24633061]
[1747225659195,1.050546,104120.0,104110.0,0.24688988]
[1747225659396,1.050546,104120.0,104110.0,0.24788988]
[1747225660085,1.380546,104120.0,104110.0,0.24788988]
[1747225661591,1.080546,104120.0,104110.0,0.24788988]
[1747225662697,1.080546,104120.0,104110.0,0.10095936]
[1747225663601,1.441346,104120.0,104110.0,0.10095936]
[1747225669698,1.45240798,104120.0,104110.0,0.10095936]
[1747225670094,1.441346,104120.0,104110.0,0.10095936]
[1747225673095,1.656906,104120.0,104110.0,0.10095936]
[1747225673300,1.5794212,104120.0,104110.0,0.10095936]
[1747225673700,1.5019364,104120.0,104110.0,0.10095936]
[1747225673896,1.5794212,104120.0,104110.0,0.10095936]
[1747225674102,1.1411364,104120.0,104110.0,0.10095936]
[1747225674301,1.2186212,104120.0,104110.0,0.10095936]
[1747225674905,0.7099764,104120.0,104110.0,0.10095936]
[1747225675100,0.9430212,104120.0,104110.0,0.26295936]
[1747225675405,0.7274612,104120.0,104110.0,0.29455936]
[1747225675603,0.7274612,104120.0,104110.0,0.32555936]
[1747225676404,0.7274612,104120.0,104110.0,1.82555936]
[1747225677305,0.7274612,104120.0,104110.0,1.66355936]
[1747225677802,0.804946,104120.0,104110.0,1.60095936]
[1747225678101,1.355746,104120.0,104110.0,0.10095936]
[1747225678606,1.2007764,104120.0,104110.0,0.10095936]
[1747225678801,1.355746,104120.0,104110.0,0.10095936]
[1747225680700,1.165746,104120.0,104110.0,0.10095936]
[1747225680904,1.0882612,104120.0,104110.0,0.10095936]
[1747225681096,1.0107764,104120.0,104110.0,0.32655936]
[1747225681400,1.0107764,104120.0,104110.0,0.40404416]
[1747225681705,1.0107764,104120.0,104110.0,0.35665936]
[1747225682010,0.2562764,104120.0,104110.0,0.62623896]
[1747225682210,0.2246764,104120.0,104110.0,0.62623896]
[1747225684111,0.2246764,104120.0,104110.0,2.12623896]
[1747225684311,0.2246764,104120.0,104110.0,2.04875416]
[1747225685310,0.2246764,104120.0,104110.0,2.12623896]
[1747225690206,0.6629612,104120.0,104110.0,2.04875416]
[1747225690412,0.6950612,104120.0,104110.0,2.04875416]
[1747225691314,0.6175764,104120.0,104110.0,2.04875416]
[1747225691606,0.2567764,104120.0,104110.0,2.12623896]
[1747225691807,0.2567764,104120.0,104110.0,2.16623896]
[1747225692116,0.2567764,104120.0,104110.0,2.12623896]
[1747225694518,0.2567764,104120.0,104110.0,2.04875416]
[1747225694715,0.2894764,104120.0,104110.0,2.04875416]
[1747225697109,0.2894764,104120.0,104110.0,2.08875416]
[1747225697309,0.2567764,104120.0,104110.0,2.12623896]
[1747225697511,0.2567764,104120.0,104110.0,2.16623896]
[1747225697809,0.2567764,104120.0,104110.0,2.12623896]
[1747225698615,0.2567764,104120.0,104110.0,2.34167896]
[1747225698921,0.2882764,104120.0,104110.0,2.34167896]
[1747225699623,0.2882764,104120.0,104110.0,2.12623896]
[1747225699922,0.2882764,104120.0,104110.0,2.04875416]
[1747225700423,0.2882764,104120.0,104110.0,2.12623896]
[1747225701120,0.2882764,104120.0,104110.0,2.09613896]
[1747225701422,0.2882764,104120.0,104110.0,2.01865416]
[1747225701613,0.3657612,104120.0,104110.0,2.01865416]
[1747225701808,0.2882764,104120.0,104110.0,2.01865416]
[1747225705522,0.3657612,104120.0,104110.0,1.79355936]
[1747225705716,0.3657612,104120.0,104110.0,1.98565416]
[1747225705917,0.2882764,104120.0,104110.0,2.09553896]
[1747225706117,0.2882764,104120.0,104110.0,1.93353896]
[1747225706418,0.2882764,104120.0,104110.0,1.96613896]
[1747225706818,0.2882764,104120.0,104110.0,1.88865416]
[1747225707015,0.6490764,104120.0,104110.0,1.88865416]
[1747225707219,0.6490764,104120.0,104110.0,2.12813896]
[1747225707515,0.2882764,104120.0,104110.0,0.5365796]
[1747225707716,0.2882764,104120.0,104110.0,0.59262723]
[1747225707917,0.2902764,104120.0,104110.0,0.59262723]
[1747225708424,0.2902764,104120.0,104110.0,2.09262723]
[1747225708924,0.2902764,104120.0,104110.0,2.01514243]
[1747225711218,0.2902764,104120.0,104110.0,2.04774243]
[1747225712617,0.2902764,104120.0,104110.0,2.01514243]
[1747225717028,0.2902764,104120.0,104110.0,2.09262723]
[1747225719325,0.2902764,104120.0,104110.0,2.13262723]
[1747225719523,0.2902764,104120.0,104110.0,0.99342723]
[1747225719725,0.0346,104120.0,104110.0,1.10251203]
[1747225719920,0.0346,104120.0,104110.0,1.03064794]
[1747225720121,0.0346,104120.0,104110.0,2.53064794]
[1747225721927,0.0346,104120.0,104110.0,2.52502723]
[1747225724123,0.0346,104120.0,104110.0,2.71984755]
[1747225725128,0.0346,104120.0,104110.0,2.73334755]
[1747225726929,0.2266764,104120.0,104110.0,2.73334755]
[1747225727129,0.2907764,104120.0,104110.0,3.12398755]
[1747225727730,0.2907764,104120.0,104110.0,3.16398755]
[1747225727930,0.2907764,104120.0,104110.0,3.12398755]
[1747225728123,0.2907764,104120.0,104110.0,3.07580297]
[1747225728627,0.2907764,104120.0,104110.0,3.11580297]
[1747225728816,0.2907764,104120.0,104110.0,3.07580297]
[1747225729725,0.2907764,104120.0,104110.0,2.68516297]
[1747225729930,0.2907764,104120.0,104110.0,3.07580297]
[1747225730424,0.2907764,104120.0,104110.0,3.11580297]
[1747225730724,0.2907764,104120.0,104110.0,3.07580297]
[1747225731627,0.2907764,104120.0,104110.0,2.99831817]
[1747225732128,0.2907764,104120.0,104110.0,3.11576297]
[1747225732516,0.2907764,104120.0,104110.0,3.03827817]
[1747225732717,0.2907764,104120.0,104110.0,3.07576297]
[1747225733331,0.2907764,104120.0,104110.0,3.11576297]
[1747225733532,0.2907764,104120.0,104110.0,3.07576297]
[1747225733830,0.2907764,104120.0,104110.0,2.99827817]
[1747225734030,0.2907764,104120.0,104110.0,3.07576297]
[1747225735130,0.2907764,104120.0,104110.0,2.91376297]
[1747225736126,0.2907764,104120.0,104110.0,2.88216297]
[1747225736318,0.2907764,104120.0,104110.0,2.45156297]
[1747225736627,0.2907764,104120.0,104110.0,2.88204297]
[1747225737025,0.2907764,104120.0,104110.0,2.45156297]
[1747225737326,0.2907764,104120.0,104110.0,2.65356297]
[1747225737522,0.2907764,104120.0,104110.0,2.61356297]
[1747225737721,0.2907764,104120.0,104110.0,3.08404297]
[1747225737918,0.2907764,104120.0,104110.0,3.04404297]
[1747225738123,0.2907764,104120.0,104110.0,2.61356297]
[1747225738324,0.2907764,104120.0,104110.0,3.04404297]
[1747225739123,0.2907764,104120.0,104110.0,2.45156297]
[1747225739324,0.2907764,104120.0,104110.0,2.88204297]
[1747225739732,0.2907764,104120.0,104110.0,2.45156297]
[1747225739933,0.2907764,104120.0,104110.0,2.88204297]
[1747225741035,0.2907764,104120.0,104110.0,2.45156297]
[1747225741238,0.2907764,104120.0,104110.0,2.84944297]
[1747225741735,0.2907764,104120.0,104110.0,2.45896297]
[1747225742036,0.2907764,104120.0,104110.0,2.84944297]
[1747225742933,0.2907764,104120.0,104110.0,2.88944297]
[1747225743129,0.2907764,104120.0,104110.0,2.84944297]
[1747225744536,0.2907764,104120.0,104110.0,2.88944297]
[1747225745339,0.2907764,104120.0,104110.0,2.30907817]
[1747225747329,0.2907764,104120.0,104110.0,2.38656297]
[1747225748733,0.2907764,104120.0,104110.0,2.19446817]
[1747225749037,0.2907764,104120.0,104110.0,2.37306297]
[1747225749234,0.2907764,104120.0,104110.0,2.22642723]
[1747225751941,0.2907764,104120.0,104110.0,2.37306297]
[1747225753041,0.2907764,104120.0,104110.0,2.29557817]
[1747225753238,0.2907764,104120.0,104110.0,2.37306297]
[1747225754042,0.2907764,104120.0,104110.0,1.93477817]
[1747225754242,0.2907764,104120.0,104110.0,2.01226297]
[1747225754738,0.2907764,104120.0,104110.0,1.93477817]
[1747225754936,0.2907764,104120.0,104110.0,2.01226297]
[1747225756034,0.2907764,104120.0,104110.0,1.93477817]
[1747225756231,0.2907764,104120.0,104110.0,2.01226297]
[1747225757136,0.2907764,104120.0,104110.0,2.37306297]
[1747225757444,0.2907764,104120.0,104110.0,2.01226297]
[1747225757742,0.2907764,104120.0,104110.0,2.37306297]
[1747225757945,0.2907764,104120.0,104110.0,2.01226297]
[1747225758243,0.2907764,104120.0,104110.0,2.37306297]
[1747225759443,0.2907764,104120.0,104110.0,2.40306297]
[1747225760445,0.2907764,104120.0,104110.0,2.32557817]
[1747225760745,0.2907764,104120.0,104110.0,2.44306297]
[1747225762140,0.2907764,104120.0,104110.0,2.37306297]
[1747225762345,0.2907764,104120.0,104110.0,2.40506297]
[1747225764649,0.806546,104120.0,104110.0,1.93477817]
[1747225764837,0.7290612,104120.0,104110.0,1.74268337]
[1747225765738,0.6515764,104120.0,104110.0,1.74268337]
[1747225766044,0.6515764,104120.0,104110.0,1.93477817]
[1747225766255,0.6515764,104120.0,104110.0,1.74268337]
[1747225766949,0.6515764,104120.0,104110.0,1.93477817]
[1747225767147,0.6515764,104120.0,104110.0,1.74268337]
[1747225768043,0.6515764,104120.0,104110.0,0.24268337]
[1747225768246,0.6515764,104120.0,104110.0,0.09604763]
[1747225768448,0.6515764,104120.0,104110.0,1.59604763]
[1747225768649,0.7290612,104120.0,104110.0,1.59604763]
[1747225771549,0.7290612,104120.0,104110.0,1.59594212]
[1747225775362,0.7290612,104120.0,104110.0,1.62604212]
[1747225780958,0.1920948,104110.0,104100.0,0.24663574]
[1747225781155,1.2735244,104110.0,104100.0,0.24663574]
[1747225781460,1.1960396,104110.0,104100.0,0.34268337]
[1747225782053,0.7258796,104110.0,104100.0,0.34268337]
[1747225782252,1.1570396,104110.0,104100.0,0.34268337]
[1747225783059,1.1580396,104110.0,104100.0,0.34268337]
[1747225784064,1.2355244,104110.0,104100.0,0.34268337]
[1747225784363,1.1580396,104110.0,104100.0,0.34268337]
[1747225784762,0.1921133,104100.0,104090.0,0.21004549]
[1747225785056,0.7078829,104100.0,104090.0,0.11128203]
[1747225785257,0.7078829,104100.0,104090.0,1.64138203]
[1747225785565,0.6303981,104100.0,104090.0,1.70748203]
[1747225785755,0.7078829,104100.0,104090.0,1.70748203]
[1747225785956,0.7378829,104100.0,104090.0,1.70748203]
[1747225786667,0.7378829,104100.0,104090.0,1.70848203]
[1747225787052,0.7378829,104100.0,104090.0,1.70948203]
[1747225787955,0.8315829,104100.0,104090.0,1.72746172]
[1747225791071,0.8315829,104100.0,104070.0,9e-08]
[1747225791072,0.0960707,104090.0,104070.0,9e-08]
[1747225791365,1.5300198,104080.0,104070.0,0.09606618]
[1747225791560,1.5937198,104080.0,104070.0,0.12816618]
[1747225792554,1.8237198,104080.0,104070.0,0.12816618]
[1747225792959,1.8237198,104080.0,104070.0,0.13116618]
[1747225793164,1.8237198,104080.0,104070.0,0.13316618]
[1747225793861,1.8237198,104080.0,104070.0,0.13116618]
[1747225794065,1.8237198,104080.0,104070.0,0.12916618]
[1747225794266,1.6687502,104080.0,104070.0,0.12916618]
[1747225794664,1.6337198,104080.0,104070.0,0.12916618]
[1747225797366,1.0085502,104080.0,104070.0,0.12916618]
[1747225797553,0.725235,104080.0,104070.0,0.16036618]
[1747225798360,0.8027198,104080.0,104070.0,0.16036618]
[1747225798574,0.725235,104080.0,104070.0,0.16036618]
[1747225799061,0.975235,104080.0,104070.0,0.16036618]
[1747225799262,0.975235,104080.0,104070.0,0.32236618]
[1747225799568,0.725235,104080.0,104070.0,0.32236618]
[1747225799967,0.8027198,104080.0,104070.0,0.32236618]
[1747225800467,0.301535,104080.0,104070.0,0.32236618]
[1747225800964,0.2240502,104080.0,104070.0,0.32236618]
[1747225801167,0.1921502,104080.0,104070.0,0.59201968]
[1747225801365,0.1921502,104080.0,104070.0,0.95281968]
[1747225801563,0.1921502,104080.0,104070.0,2.45281968]
[1747225802967,0.1921502,104080.0,104070.0,2.48281968]
[1747225803268,0.1921502,104080.0,104070.0,2.82890368]
[1747225805270,0.1921502,104080.0,104070.0,2.86960878]
[1747225806064,0.1921502,104080.0,104070.0,2.88310878]
[1747225806265,0.1921502,104080.0,104070.0,2.63310878]
[1747225809964,0.1921502,104080.0,104070.0,2.75129868]
[1747225810165,0.1921502,104080.0,104070.0,2.63310878]
[1747225811876,0.272668,104090.0,104070.0,2.55912998]
[1747225812168,0.3362178,104100.0,104090.0,0.1921317]
[1747225812376,0.3669178,104100.0,104090.0,0.6711216]
[1747225812574,0.3669178,104100.0,104090.0,2.2330216]
[1747225812874,0.3669178,104100.0,104090.0,2.32910615]
[1747225813068,0.3669178,104100.0,104090.0,2.49110615]
[1747225813772,0.3699178,104100.0,104090.0,2.49110615]
[1747225813969,0.3729178,104100.0,104090.0,2.49110615]